bitfinex-derivatives/quotes_SOLF0:USTF0_20250818
["timestamp","ask_amount","ask_price","bid_price","bid_amount"]
[1755479340862,2.84,190.06,189.99,1.95441227]
[1755479341060,2.84,190.06,190.0,2.96]
[1755479341259,2.84,190.06,190.02,5.259]
[1755479341461,2.84,190.06,190.03,2.96]
[1755479341656,2.84,190.12,190.03,2.96]
[1755479341855,3.77166486,190.11,190.03,8.219]
[1755479342059,3.77166486,190.1,190.03,8.219]
[1755479342248,2.84,190.08,190.06,0.03479606]
[1755479347362,6.61507864,190.07,189.99,2.96]
[1755479347660,2.84,190.06,189.99,2.96]
[1755479348866,0.03354286,190.04,189.99,2.96]
[1755479349068,2.84,190.03,189.99,2.96]
[1755479349456,2.84,190.07,190.0,5.2597]
[1755479349765,0.03758766,190.03,190.01,2.96]
[1755479349960,0.03758766,190.03,190.0,5.2597]
[1755479350168,2.84,190.03,190.02,2.96]
[1755479350561,2.87707938,190.03,190.02,2.96]
[1755479351765,2.87707938,190.03,190.0,2.96]
[1755479351966,2.84,190.02,190.01,2.96]
[1755479355663,2.84,190.02,189.98,8.2202]
[1755479355866,2.84,190.02,189.99,2.96]
[1755479356267,2.84,190.02,189.94,1.95441227]
[1755479356570,2.84,190.02,189.95,2.96]
[1755479356971,0.03345482,190.0,189.95,8.221]
[1755479357168,2.84,189.99,189.96,2.96]
[1755479357565,2.84,189.99,189.94,1.95441227]
[1755479357767,2.84,189.99,189.95,2.93]
[1755479357965,2.84,189.99,189.92,2.93]
[1755479360681,2.82,189.97,189.91,2.93]
[1755479361971,0.03597597,189.96,189.91,2.93]
[1755479362178,2.82,189.95,189.92,2.93]
[1755479362770,2.82,189.95,189.86,82.88515963]
[1755479362974,2.82,189.95,189.87,2.93]
[1755479363277,2.82,189.95,189.9,2.93]
[1755479366183,2.82,189.95,189.91,2.93]
[1755479367179,2.82,189.95,189.92,2.93]
[1755479368984,2.82,189.95,189.93,2.93]
[1755479369777,2.82,189.95,189.89,2.93]
[1755479371981,2.82,189.95,189.84,2.93]
[1755479372182,2.82,189.93,189.84,2.93]
[1755479373587,0.03376551,189.9,189.84,2.93]
[1755479373888,2.82,189.88,189.84,2.93]
[1755479374290,2.82,189.88,189.85,2.93]
[1755479375091,2.85376551,189.9,189.85,2.93]
[1755479375290,0.03376551,189.9,189.85,4.88441227]
[1755479375490,0.03376551,189.9,189.85,1.95441227]
[1755479375691,2.85376551,189.9,189.87,2.93]
[1755479376190,2.82,189.89,189.87,2.93]
[1755479376391,2.82,189.89,189.88,2.93]
[1755479377200,2.82,189.89,189.87,2.93]
[1755479379103,2.82,189.88,189.87,2.93]
[1755479379901,2.82,189.88,189.82,7.21911227]
[1755479380108,0.03376551,189.9,189.83,2.93]
[1755479380298,2.82,189.89,189.83,2.93]
[1755479380499,2.82,189.89,189.81,2.93]
[1755479380710,2.82,189.87,189.81,2.93]
[1755479380910,2.82,189.87,189.79,78.19326113]
[1755479381111,2.82,189.87,189.79,81.12326113]
[1755479381314,2.82,189.87,189.79,2.93]
[1755479384512,2.82,189.87,189.79,4.88441227]
[1755479384707,2.82,189.87,189.73,2.93]
[1755479384913,2.82,189.87,189.8,2.93]
[1755479385216,2.82,189.87,189.83,2.93]
[1755479385407,1.95441227,189.95,189.83,2.93]
[1755479385608,0.03532078,189.85,189.83,2.93]
[1755479385803,2.82,189.86,189.83,2.93]
[1755479386210,2.85340412,189.86,189.83,2.93]
[1755479388213,0.03340412,189.86,189.83,2.93]
[1755479388412,2.79,189.85,189.83,2.93]
[1755479390317,0.03340412,189.86,189.83,2.93]
[1755479391520,0.03340412,189.86,189.84,2.85]
[1755479392023,2.79,189.85,189.84,2.85]
[1755479392814,0.03340412,189.86,189.82,1.95441227]
[1755479393017,2.82340412,189.86,189.85,2.85]
[1755479395717,2.82340412,189.86,189.82,5.2648]
[1755479395718,2.79,189.85,189.82,2.85]
[1755479396220,0.03340412,189.86,189.81,1.95441227]
[1755479396427,0.03340412,189.86,189.84,2.85]
[1755479396817,0.03340412,189.86,189.84,8.114]
[1755479397126,0.03340412,189.86,189.85,2.85]
[1755479397823,0.03340412,189.86,189.85,8.1139]
[1755479398027,2.79,189.97,189.87,1.95441227]
[1755479398325,1.95441227,189.98,189.87,1.95441227]
[1755479398326,2.79,189.95,189.89,5.2628]
[1755479398518,2.79,189.95,189.9,2.85]
[1755479398717,2.79,189.95,189.91,2.85]
[1755479398924,2.79,189.95,189.9,2.85]
[1755479399622,2.79,189.95,189.91,2.85]
[1755479400227,3.79153358,189.94,189.87,10.06771227]
[1755479400421,1.95441227,189.98,189.87,10.06771227]
[1755479400422,2.79,189.97,189.87,7.21771227]
[1755479400620,2.79,189.95,189.88,2.85]
[1755479400825,3.78977979,189.94,189.89,5.2628]
[1755479401027,2.79,189.97,189.88,2.85]
[1755479401227,2.79,189.95,189.88,2.85]
[1755479401423,2.79,189.93,189.88,2.85]
[1755479401618,2.79,189.91,189.85,5.2639]
[1755479401821,2.79,189.91,189.87,2.85]
[1755479402524,2.79,189.91,189.85,5.2639]
[1755479402728,2.79,189.94,189.87,2.85]
[1755479403026,3.79516825,189.93,189.87,2.85]
[1755479403227,3.79516825,189.92,189.87,5.2632]
[1755479403426,2.79,189.9,189.89,2.85]
[1755479404424,1.95441227,189.98,189.87,5.2634]
[1755479404626,2.79,189.91,189.9,2.85]
[1755479406439,2.79,189.94,189.9,2.85]
[1755479406636,6.58336795,189.93,189.9,2.85]
[1755479406825,6.58336795,189.92,189.9,2.85]
[1755479407021,2.79,189.92,189.91,2.85]
[1755479407226,6.58110963,189.92,189.91,2.85]
[1755479407526,2.79,190.0,189.91,2.85]
[1755479407835,2.79,189.98,189.91,2.85]
[1755479408027,3.78920107,189.97,189.91,2.85]
[1755479408222,137.02967714,190.04,189.93,5.2615]
[1755479408428,137.02967714,190.04,189.94,2.85]
[1755479408429,2.79,189.97,189.94,2.85]
[1755479409533,2.79,190.03,189.95,2.85]
[1755479409733,10.90568143,190.02,189.97,2.85]
[1755479409942,6.57995871,190.01,189.97,8.1106]
[1755479410232,2.79,190.03,189.97,2.85]
[1755479410633,1.95441227,190.08,189.98,5.2603]
[1755479410839,2.79,190.06,189.97,2.85]
[1755479411025,2.79,190.04,189.97,2.85]
[1755479411336,2.79,190.02,189.94,2.85]
[1755479411539,2.79,190.0,189.94,2.85]
[1755479411731,2.79,189.98,189.94,2.85]
[1755479412234,2.79,189.98,189.91,2.85]
[1755479413133,2.79,189.96,189.9,5.2625]
[1755479413336,2.79,189.96,189.9,2.85]
[1755479414440,3.79022824,189.95,189.9,2.85]
[1755479414633,2.79,189.94,189.9,2.85]
[1755479414834,2.79,189.93,189.88,2.85]
[1755479415337,2.79,189.94,189.85,2.85]
[1755479415840,2.79,189.94,189.84,1.95441227]
[1755479416039,2.79,189.94,189.85,2.85]
[1755479416636,2.79,189.94,189.87,2.85]
[1755479417833,3.78927935,189.93,189.87,2.85]
[1755479418033,2.86,189.92,189.87,2.85]
[1755479418638,2.86,189.92,189.85,3.0]
[1755479418838,3.78901147,189.91,189.85,3.0]
[1755479419032,2.86,189.9,189.82,5.2646]
[1755479419234,2.86,189.9,189.83,3.0]
[1755479421043,2.86,189.9,189.83,8.2645]
[1755479421341,2.86,189.9,189.84,3.0]
[1755479422442,2.86,189.95,189.85,4.95441227]
[1755479422743,2.86,189.95,189.92,3.0]
[1755479423246,2.86,189.94,189.93,3.0]
[1755479423439,2.86,189.97,189.93,3.0]
[1755479423644,2.86,189.96,189.93,3.0]
[1755479423838,2.86,189.95,189.94,3.0]
[1755479424038,2.86,189.95,189.91,3.0]
[1755479424239,2.86,189.95,189.89,3.0]
[1755479425047,2.86,189.93,189.87,3.0]
[1755479431947,2.86,189.91,189.87,3.0]
[1755479432356,2.86,189.9,189.87,3.0]
[1755479433547,2.86,189.9,189.87,8.2634]
[1755479433753,2.86,189.98,189.88,3.0]
[1755479434055,5.83526487,190.01,189.88,3.0]
[1755479434056,2.86,189.96,189.88,3.0]
[1755479434247,6.65356981,189.95,189.91,3.0]
[1755479434455,2.86,189.95,189.91,3.0]
[1755479434652,1.95441227,190.01,189.91,3.0]
[1755479434853,2.86,189.94,189.91,3.0]
[1755479437451,135.01526487,190.02,189.91,3.0]
[1755479437452,2.86,190.0,189.91,3.0]
[1755479437652,131.13441227,190.02,189.91,3.0]
[1755479437653,6.65787235,189.99,189.91,3.0]
[1755479437849,6.65787235,189.98,189.91,3.0]
[1755479438047,2.86,189.97,189.91,3.0]
[1755479438258,2.86,189.97,189.93,5.2615]
[1755479438461,2.86,189.97,189.94,3.0]
[1755479438659,129.18,190.02,189.94,3.0]
[1755479438858,2.86,189.96,189.94,3.0]
[1755479439859,2.86,189.96,189.93,5.2615]
[1755479440061,2.86,189.96,189.95,3.0]
[1755479442164,2.86,190.01,189.95,3.0]
[1755479442369,2.86,189.99,189.95,3.0]
[1755479442667,2.86,189.98,189.96,3.0]
[1755479442867,2.86,190.01,189.96,3.0]
[1755479443055,3.79712685,190.0,189.96,3.0]
[1755479443255,2.86,190.0,189.96,3.0]
[1755479443465,2.86,190.0,189.97,3.0]
[1755479443661,2.86,190.04,189.97,3.0]
[1755479443965,2.86,190.02,189.96,5.2608]
[1755479444170,2.86,190.0,189.98,3.0]
[1755479444358,3.79611274,190.01,189.98,3.0]
[1755479444359,2.86,189.99,189.98,3.0]
[1755479446466,2.86,190.04,189.94,3.0]
[1755479446663,1.95441227,190.02,189.94,3.0]
[1755479446863,2.86,190.0,189.94,3.0]
[1755479447065,2.86,189.98,189.94,3.0]
[1755479447364,2.86,189.98,189.92,3.0]
[1755479447976,3.79692312,189.97,189.92,3.0]
[1755479448181,2.81,189.96,189.92,3.0]
[1755479448376,2.81,189.96,189.93,2.88]
[1755479450081,2.81,190.01,189.92,2.88]
[1755479450282,1.95441227,190.02,189.92,2.88]
[1755479450283,2.81,189.99,189.92,2.88]
[1755479450577,2.81,189.97,189.9,2.88]
[1755479450780,1.95441227,189.99,189.86,1.95441227]
[1755479450781,2.81,189.95,189.86,2.88]
[1755479450982,2.81,189.93,189.86,2.88]
[1755479452283,2.81,189.93,189.87,2.88]
[1755479453287,3.7965659,189.92,189.87,2.88]
[1755479453588,2.81,189.91,189.88,2.88]
[1755479453887,2.81,189.91,189.81,1.95441227]
[1755479454087,2.81,189.91,189.82,2.88]
[1755479454887,2.81,189.91,189.85,2.88]
[1755479461783,3.79744457,189.9,189.82,2.88]
[1755479461987,2.81,189.89,189.82,2.88]
[1755479465690,2.81,189.89,189.82,8.1446]
[1755479465898,2.81,189.89,189.83,2.88]
[1755479466993,1.95441227,189.96,189.84,5.2641]
[1755479467199,2.81,189.94,189.85,2.88]
[1755479467489,2.81,189.92,189.85,8.1439]
[1755479467697,6.60960158,189.91,189.85,2.88]
[1755479467893,2.81,189.91,189.85,2.88]
[1755479469596,2.81,189.89,189.86,2.88]
[1755479474801,7.78967714,189.96,189.87,2.88]
[1755479474990,2.81,189.94,189.87,2.88]
[1755479475196,2.81,189.92,189.87,2.88]
[1755479475497,2.81,189.9,189.87,2.88]
[1755479475699,2.81,189.88,189.87,2.88]
[1755479476591,2.81,189.88,189.81,7.21941227]
[1755479476792,2.81,189.88,189.86,2.88]
[1755479477404,1.95441227,189.96,189.86,2.88]
[1755479477701,2.81,189.87,189.86,2.88]
[1755479478104,1.95441227,189.96,189.81,1.95441227]
[1755479478304,2.94,189.88,189.87,2.97]
[1755479479196,2.94,189.95,189.83,2.97]
[1755479479394,5.83526487,189.98,189.75,355.73441227]
[1755479479395,6.74869676,189.94,189.88,1.95441227]
[1755479479599,5.83526487,190.01,189.89,2.97]
[1755479479600,2.94,189.93,189.89,2.97]
[1755479479800,2.94,189.92,189.89,2.97]
[1755479480705,2.94,189.92,189.82,2.97]
[1755479481006,2.94,189.9,189.82,2.97]
[1755479481306,2.94,189.95,189.84,1.95441227]
[1755479481506,2.94,189.93,189.85,2.97]
[1755479482107,2.94,189.93,189.88,2.97]
[1755479482509,2.94,189.95,189.88,2.97]
[1755479485008,2.94,189.95,189.88,5.2631]
[1755479485212,2.94,189.95,189.89,2.97]
[1755479487714,2.94,189.95,189.89,5.2626]
[1755479488009,2.94,190.01,189.91,2.97]
[1755479488209,2.94,189.99,189.93,1.95441227]
[1755479488414,3.81072799,189.98,189.91,2.97]
[1755479488608,3.81131052,189.97,189.91,2.97]
[1755479488913,1.95441227,190.01,189.88,2.97]
[1755479488914,2.94,189.95,189.88,2.97]
[1755479489115,2.94,189.95,189.9,2.97]
[1755479489307,1.95441227,190.01,189.9,2.97]
[1755479489508,2.94,189.99,189.9,2.97]
[1755479489704,2.94,189.97,189.91,2.97]
[1755479489910,2.94,189.95,189.91,2.97]
[1755479490106,2.94,189.94,189.91,2.97]
[1755479491020,2.94,189.94,189.91,8.2322]
[1755479491220,2.94,190.0,189.9,1.95441227]
[1755479491416,2.94,189.98,189.91,2.97]
[1755479491717,6.75332683,189.97,189.91,2.97]
[1755479491921,2.94,190.02,189.94,2.97]
[1755479492113,6.75515909,190.01,189.97,2.97]
[1755479492314,2.94,190.01,189.97,2.97]
[1755479492714,7.78967714,190.09,189.97,2.97]
[1755479492912,2.94,190.03,189.97,2.97]
[1755479493118,3.81458194,190.02,189.97,2.97]
[1755479493318,2.94,190.02,189.99,2.97]
[1755479493722,2.94,190.02,189.97,7.21481227]
[1755479494026,2.94,190.01,190.0,2.97]
[1755479494821,2.94,190.08,190.0,2.97]
[1755479495021,2.94,190.06,190.0,2.97]
[1755479495223,2.94,190.04,190.01,2.97]
[1755479495424,2.94,190.02,190.01,2.97]
[1755479496325,2.94,190.09,190.01,2.97]
[1755479496529,8.75289731,190.12,190.01,2.97]
[1755479496530,2.94,190.07,190.01,2.97]
[1755479496917,3.81369089,190.06,190.01,2.97]
[1755479497115,2.94,190.04,190.01,2.97]
[1755479498722,3.81001815,190.03,189.98,2.97]
[1755479498928,2.94,190.04,189.98,2.97]
[1755479499124,2.94,190.02,189.98,2.97]
[1755479499326,2.94,190.07,189.95,2.97]
[1755479499527,2.94,190.05,189.95,2.97]
[1755479499825,2.94,190.03,189.95,8.2311]
[1755479500130,2.94,190.03,189.96,2.97]
[1755479500324,2.94,190.03,189.96,8.2309]
[1755479500524,2.94,190.03,189.95,2.97]
[1755479500725,2.94,190.01,189.95,2.97]
[1755479503031,3.80941954,190.0,189.95,2.97]
[1755479503225,2.94,190.01,189.92,2.97]
[1755479503421,3.80954793,190.0,189.92,2.97]
[1755479503624,2.94,189.99,189.92,2.97]
[1755479506030,2.94,189.99,189.95,2.97]
[1755479507624,2.94,190.01,189.92,2.97]
[1755479507830,1.95441227,189.99,189.92,2.97]
[1755479508030,2.82,189.97,189.88,353.64]
[1755479508333,2.82,189.97,189.89,3.05]
[1755479508626,2.82,189.97,189.9,3.05]
[1755479512331,2.82,189.97,189.9,1.95441227]
[1755479512538,2.82,190.01,189.92,5.262]
[1755479512728,2.82,189.99,189.93,3.05]
[1755479514030,2.82,190.04,189.93,1.95441227]
[1755479514237,3.79187408,190.03,189.97,3.05]
[1755479514538,2.82,190.01,189.97,3.05]
[1755479514738,2.82,190.07,189.97,3.05]
[1755479514932,4.77441227,190.05,189.97,3.05]
[1755479515126,2.82,190.03,189.97,3.05]
[1755479515329,2.82,190.01,189.98,3.05]
[1755479515737,1.95441227,190.05,189.98,3.05]
[1755479515939,2.82,189.99,189.98,3.05]
[1755479517140,2.82,190.07,189.98,3.05]
[1755479517340,2.82,190.05,189.98,3.05]
[1755479517542,2.82,190.03,189.97,3.05]
[1755479517734,2.82,190.01,189.95,3.05]
[1755479517933,2.82,189.99,189.96,3.05]
[1755479520843,2.82,189.99,189.92,3.05]
[1755479522439,2.82,189.99,189.93,3.05]
[1755479522742,2.82,189.99,189.94,3.05]
[1755479522948,2.82,190.04,189.94,3.05]
[1755479523248,2.82,190.02,189.94,3.05]
[1755479523441,8.13658488,190.01,189.94,3.05]
[1755479523645,2.82,189.99,189.94,3.05]
[1755479524039,3.7921453,189.98,189.94,3.05]
[1755479524240,2.82,189.97,189.95,3.05]
[1755479524441,7.78967714,190.05,189.95,3.05]
[1755479524646,2.82,190.03,189.95,3.05]
[1755479524849,2.82,190.01,189.95,3.05]
[1755479525147,2.82,189.99,189.95,3.05]
[1755479525349,2.82,189.97,189.95,3.05]
[1755479525541,2.82,189.96,189.95,3.05]
[1755479526548,2.82,189.96,189.9,1.95441227]
[1755479526549,2.82,189.96,189.92,3.05]
[1755479526744,3.79680435,189.95,189.92,3.05]
[1755479526940,7.78967714,190.02,189.88,3.05]
[1755479526941,2.82,189.94,189.88,3.05]
[1755479527553,2.82,189.92,189.89,3.05]
[1755479528044,2.82,189.98,189.86,3.05]
[1755479528240,2.82,189.96,189.86,8.3137]
[1755479528445,2.82,189.94,189.87,3.05]
[1755479528745,2.82,189.91,189.87,3.05]
[1755479529650,2.82,189.9,189.87,3.05]
[1755479529853,1.95441227,189.99,189.86,3.05]
[1755479529854,2.82,189.95,189.86,3.05]
[1755479530050,2.82,189.93,189.86,3.05]
[1755479530245,2.82,189.91,189.86,3.05]
[1755479530749,2.82,189.89,189.86,3.05]
[1755479531145,1.95441227,189.99,189.86,3.05]
[1755479531346,2.82,189.97,189.88,3.05]
[1755479531551,2.82,189.95,189.88,3.05]
[1755479531746,3.79599425,189.94,189.88,5.2631]
[1755479531942,3.79599425,189.94,189.87,1.95441227]
[1755479531943,2.82,189.92,189.9,3.05]
[1755479532151,2.82,189.92,189.91,3.05]
[1755479533256,2.82,189.98,189.91,3.05]
[1755479533456,2.82,189.96,189.88,3.05]
[1755479533651,3.79596574,189.95,189.88,3.05]
[1755479533851,3.79596574,189.94,189.88,3.05]
[1755479534053,2.82,189.98,189.88,5.2631]
[1755479534250,2.82,189.96,189.89,3.05]
[1755479534448,2.82,189.94,189.89,3.05]
[1755479535460,2.82,189.94,189.88,3.05]
[1755479535959,2.82,189.94,189.89,5.2626]
[1755479536251,1.95441227,189.99,189.9,3.05]
[1755479536456,2.82,189.97,189.88,3.05]
[1755479536653,1.95441227,189.99,189.88,3.05]
[1755479536654,2.82,189.95,189.88,3.05]
[1755479536854,2.82,189.93,189.86,5.2637]
[1755479537456,2.82,189.93,189.87,3.05]
[1755479538558,2.86,189.91,189.88,2.97]
[1755479538756,2.86,189.91,189.86,2.97]
[1755479538954,2.86,189.91,189.82,5.2646]
[1755479539156,2.86,189.91,189.87,2.97]
[1755479539357,2.86,189.91,189.81,1.95441227]
[1755479539556,2.86,189.91,189.84,2.97]
[1755479541155,3.78576756,189.9,189.84,2.97]
[1755479541353,1.95441227,189.96,189.84,2.97]
[1755479541554,2.86,189.94,189.84,2.97]
[1755479541750,2.86,189.92,189.84,2.97]
[1755479541957,2.86,189.9,189.84,8.2342]
[1755479542157,2.86,189.9,189.85,2.97]
[1755479542458,2.86,189.9,189.81,1.95441227]
[1755479542759,2.86,189.9,189.82,2.97]
[1755479543353,2.86,189.88,189.82,2.97]
[1755479544956,1.95441227,189.93,189.82,2.97]
[1755479545162,2.86,189.91,189.82,2.97]
[1755479545350,2.86,189.89,189.82,8.2346]
[1755479545554,2.86,189.89,189.83,2.97]
[1755479546055,2.86,189.89,189.83,8.2345]
[1755479546251,2.86,189.92,189.84,2.97]
[1755479546454,2.86,189.9,189.84,2.97]
[1755479546853,2.86,189.92,189.85,2.97]
[1755479547157,2.86,189.92,189.87,1.95441227]
[1755479547463,2.86,190.0,189.9,2.97]
[1755479547663,2.86,189.98,189.9,2.97]
[1755479547850,5.83526487,190.01,189.9,2.97]
[1755479547851,2.86,189.96,189.9,2.97]
[1755479548056,3.78629064,189.95,189.88,5.2631]
[1755479548363,2.86,189.93,189.89,2.97]
[1755479548559,2.86,189.93,189.9,2.97]
[1755479548958,8.69526487,190.01,189.91,2.97]
[1755479549163,2.86,189.99,189.91,2.97]
[1755479549360,2.86,189.97,189.89,2.97]
[1755479549552,2.86,189.95,189.89,2.97]
[1755479549757,3.78557267,189.94,189.89,2.97]
[1755479549959,1.95441227,189.99,189.89,2.97]
[1755479549960,2.86,189.93,189.89,2.97]
[1755479551365,2.86,189.93,189.87,1.95441227]
[1755479551566,2.86,189.93,189.9,2.97]
[1755479552359,2.86,190.01,189.9,2.97]
[1755479552565,2.86,189.99,189.9,2.97]
[1755479552868,2.86,189.97,189.9,2.97]
[1755479553057,2.86,189.95,189.9,2.97]
[1755479553363,2.86,190.01,189.9,2.97]
[1755479553564,2.86,189.99,189.9,2.97]
[1755479553862,2.86,189.97,189.91,2.97]
[1755479554068,2.86,189.96,189.91,2.97]
[1755479554269,2.86,189.97,189.94,2.97]
[1755479555561,2.86,189.97,189.93,1.95441227]
[1755479555562,2.86,189.96,189.95,2.97]
[1755479556464,2.86,189.97,189.96,2.97]
[1755479556771,1.95441227,190.05,189.97,2.97]
[1755479556966,2.86,190.03,189.97,2.97]
[1755479557167,2.86,190.03,189.93,1.95441227]
[1755479557168,2.86,190.01,189.98,2.97]
[1755479557370,1.95441227,190.05,189.98,2.97]
[1755479557371,2.86,189.99,189.98,2.97]
[1755479557865,2.86,189.99,189.96,2.97]
[1755479558070,2.86,189.98,189.97,2.97]
[1755479563772,2.86,190.04,189.94,2.97]
[1755479564073,8.13217523,190.03,189.97,2.97]
[1755479564271,2.86,190.04,190.0,2.97]
[1755479564477,3.78444411,190.03,190.0,2.97]
[1755479564681,2.86,190.06,190.0,2.97]
[1755479564975,6.64448109,190.05,190.0,2.97]
[1755479565171,2.86,190.07,190.02,1.95441227]
[1755479565371,2.86,190.05,189.99,1.95441227]
[1755479565572,2.86,190.03,189.99,1.95441227]
[1755479565775,2.86,190.03,190.02,2.97]
[1755479567080,2.86,190.1,190.02,2.97]
[1755479567281,2.86,190.08,190.02,2.97]
[1755479567483,2.86,190.06,190.02,2.97]
[1755479567678,2.86,190.04,190.03,2.97]
[1755479567975,6.64197529,190.04,190.03,2.97]
[1755479568181,2.86,190.04,190.03,2.97]
[1755479568582,2.86,190.04,190.01,3.0]
[1755479568772,2.83,190.1,189.96,3.0]
[1755479568976,1.95441227,190.05,189.96,3.0]
[1755479569176,2.83,190.03,189.96,3.0]
[1755479569376,2.83,190.01,189.96,3.0]
[1755479569576,2.83,190.0,189.96,3.0]
[1755479569779,2.83,190.03,189.96,3.0]
[1755479569978,2.83,190.03,189.98,1.95441227]
[1755479570183,2.83,190.03,189.99,3.0]
[1755479571079,1.95441227,190.08,189.99,3.0]
[1755479571080,2.83,190.02,189.99,3.0]
[1755479573474,2.83,190.05,190.0,3.0]
[1755479573986,2.83,190.05,190.0,8.2598]
[1755479574181,2.83,190.07,190.01,1.95441227]
[1755479574386,2.83,190.07,190.02,3.0]
[1755479574686,2.83,190.06,190.02,3.0]
[1755479576686,2.83,190.05,190.02,3.0]
[1755479576988,7.78967714,190.14,190.02,3.0]
[1755479577190,2.83,190.12,190.02,3.0]
[1755479577489,2.83,190.1,190.03,3.0]
[1755479577787,3.77781822,190.09,190.03,3.0]
[1755479578082,1.95441227,190.14,190.03,3.0]
[1755479578288,14.81843222,190.13,190.03,3.0]
[1755479578588,2.83,190.11,190.03,3.0]
[1755479578887,2.83,190.09,190.03,3.0]
[1755479579788,2.83,190.09,190.03,5.259]
[1755479579986,1.95441227,190.14,190.04,3.03965326]
[1755479580186,2.83,190.11,190.05,3.0]
[1755479580388,2.83,190.13,190.07,1.95441227]
[1755479580689,2.83,190.11,190.08,3.0]
[1755479580989,2.83,190.11,190.08,3.03812112]
[1755479581189,2.83,190.1,190.09,3.0]
[1755479581387,2.83,190.1,190.08,0.03812112]
[1755479581586,2.83,190.1,190.07,3.0]
[1755479582088,2.83,190.1,190.07,3.03372944]
[1755479582290,1.95441227,190.17,190.07,0.03372944]
[1755479582489,2.83,190.09,190.08,3.0]
[1755479582985,2.83,190.09,190.07,0.03372944]
[1755479585188,1.95441227,190.09,190.07,0.03372944]
[1755479585387,2.83,190.08,190.07,0.03372944]
[1755479586088,6.59940647,190.08,190.0,3.0]
[1755479586284,1.95441227,190.06,190.0,3.0]
[1755479586492,2.83,190.05,190.0,3.0]
[1755479587194,2.83,190.05,190.01,3.0]
[1755479587390,0.03432416,190.04,190.01,3.0]
[1755479587585,2.83,190.03,190.01,3.0]
[1755479587885,2.83,190.03,189.99,3.0]
[1755479588680,2.86421206,190.03,189.99,3.0]
[1755479588887,2.86421206,190.03,190.0,3.0]
[1755479589792,2.86421206,190.03,189.94,3.0]
[1755479590590,2.86421206,190.03,189.94,8.2613]
[1755479590792,2.86421206,190.03,189.95,3.0]
[1755479591496,4.81862433,190.03,189.95,3.0]
[1755479591692,1.95441227,190.0,189.95,3.0]
[1755479591990,2.83,189.99,189.95,3.0]
[1755479592298,2.83,189.99,189.93,3.0]